[Event "Titled Tuesday Blitz February 21 Early 2023"]
[White "Babikov, Ivan"]
[Black "Ordekalog"]
[WhiteFideId "4161106"]
[WhiteElo "2239"]
[BlackElo "2560"]
[Result "0-1"]
[Round "08"]
[TimeControl "180+2"]
[Date "2023.02.21"]
[WhiteClock "0:00:14"]
[BlackClock "0:00:14"]

1. Nf3 {[%clk 0:03:00]}  d5 {[%clk 0:02:59]} 2. g3 {[%clk 0:03:01]}  c5 {[%clk 0:02:58]} 3. Bg2 {[%clk 0:03:01]}  Nc6 {[%clk 0:02:57]} 4. d4 {[%clk 0:03:01]}  Nf6 {[%clk 0:02:56]} 5. O-O {[%clk 0:03:01]}  cxd4 {[%clk 0:02:56]} 6. Nxd4 {[%clk 0:03:01]}  Na5 {[%clk 0:02:54]} 7. Nc3 {[%clk 0:02:52]}  e5 {[%clk 0:02:53]} 8. Ndb5 {[%clk 0:02:42]}  a6 {[%clk 0:02:51]} 9. Na3 {[%clk 0:02:30]}  Be6 {[%clk 0:02:47]} 10. Bg5 {[%clk 0:02:29]}  d4 {[%clk 0:02:24]} 11. Ne4 {[%clk 0:02:20]}  Rc8 {[%clk 0:02:17]} 12. Nxf6+ {[%clk 0:01:59]}  gxf6 {[%clk 0:02:18]} 13. Bd2 {[%clk 0:02:00]}  Nc6 {[%clk 0:02:11]} 14. c3 {[%clk 0:01:56]}  Qd7 {[%clk 0:01:58]} 15. Nc2 {[%clk 0:01:55]}  d3 {[%clk 0:01:50]} 16. exd3 {[%clk 0:01:45]}  Qxd3 {[%clk 0:01:51]} 17. Be3 {[%clk 0:01:45]}  Qf5 {[%clk 0:01:36]} 18. Qe2 {[%clk 0:01:34]}  h5 {[%clk 0:01:29]} 19. h4 {[%clk 0:01:25]}  Be7 {[%clk 0:01:23]} 20. Rad1 {[%clk 0:01:20]}  Qg4 {[%clk 0:01:23]} 21. Bf3 {[%clk 0:01:19]}  Qc4 {[%clk 0:01:21]} 22. Qxc4 {[%clk 0:01:10]}  Bxc4 {[%clk 0:01:22]} 23. Rfe1 {[%clk 0:01:11]}  Bxa2 {[%clk 0:01:20]} 24. Bd5 {[%clk 0:01:00]}  Bxd5 {[%clk 0:01:19]} 25. Rxd5 {[%clk 0:01:01]}  Rd8 {[%clk 0:01:17]} 26. Red1 {[%clk 0:01:01]}  Rxd5 {[%clk 0:01:15]} 27. Rxd5 {[%clk 0:01:02]}  Bf8 {[%clk 0:01:07]} 28. Bb6 {[%clk 0:01:02]}  Ke7 {[%clk 0:01:06]} 29. Ne3 {[%clk 0:01:01]}  Ke6 {[%clk 0:01:05]} 30. Rd1 {[%clk 0:00:51]}  Bh6 {[%clk 0:01:03]} 31. Nd5 {[%clk 0:00:49]}  Rc8 {[%clk 0:00:57]} 32. Nc7+ {[%clk 0:00:48]}  Kf5 {[%clk 0:00:57]} 33. Rd7 {[%clk 0:00:39]}  Bc1 {[%clk 0:00:56]} 34. b3 {[%clk 0:00:32]}  Kg6 {[%clk 0:00:50]} 35. Nd5 {[%clk 0:00:29]}  Rb8 {[%clk 0:00:43]} 36. c4 {[%clk 0:00:27]}  Bb2 {[%clk 0:00:36]} 37. Rd6 {[%clk 0:00:24]}  e4 {[%clk 0:00:34]} 38. Bc7 {[%clk 0:00:24]}  Re8 {[%clk 0:00:32]} 39. Nf4+ {[%clk 0:00:23]}  Kf5 {[%clk 0:00:29]} 40. Rd5+ {[%clk 0:00:22]}  Be5 {[%clk 0:00:28]} 41. Nxh5 {[%clk 0:00:20]}  Rg8 {[%clk 0:00:23]} 42. Nf4 {[%clk 0:00:16]}  Nb4 {[%clk 0:00:19]} 43. Ra5 {[%clk 0:00:13]}  Nc6 {[%clk 0:00:16]} 44. Rd5 {[%clk 0:00:13]}  Ne7 {[%clk 0:00:16]} 45. Ra5 {[%clk 0:00:11]}  Rc8 {[%clk 0:00:15]} 46. Bxe5 {[%clk 0:00:11]}  fxe5 {[%clk 0:00:16]} 47. Ne2 {[%clk 0:00:08]}  Nc6 {[%clk 0:00:15]} 48. Rc5 {[%clk 0:00:08]}  Ke6 {[%clk 0:00:15]} 49. Nc3 {[%clk 0:00:07]}  b6 {[%clk 0:00:14]} 50. Rd5 {[%clk 0:00:08]}  Nb4 {[%clk 0:00:14]} 51. Rd1 {[%clk 0:00:06]}  f5 {[%clk 0:00:15]} 52. Kg2 {[%clk 0:00:06]}  Nd3 {[%clk 0:00:14]} 53. Nd5 {[%clk 0:00:05]}  b5 {[%clk 0:00:14]} 54. Nb6 {[%clk 0:00:06]}  Rc6 {[%clk 0:00:13]} 55. Nd5 {[%clk 0:00:03]}  bxc4 {[%clk 0:00:12]} 56. bxc4 {[%clk 0:00:04]}  Rxc4 {[%clk 0:00:13]} 57. Ne3 {[%clk 0:00:05]}  Rb4 {[%clk 0:00:12]} 58. h5 {[%clk 0:00:05]}  Rb2 {[%clk 0:00:12]} 59. h6 {[%clk 0:00:03]}  Nxf2 {[%clk 0:00:11]} 60. Rc1 {[%clk 0:00:02]}  Nd3+ {[%clk 0:00:09]} 61. Rc2 {[%clk 0:00:02]}  Rxc2+ {[%clk 0:00:09]} 62. Nxc2 {[%clk 0:00:03]}  Kf6 {[%clk 0:00:10]} 63. Ne3 {[%clk 0:00:03]}  f4 {[%clk 0:00:08]} 64. Nd5+ {[%clk 0:00:02]}  Kg6 {[%clk 0:00:04]} 65. h7 {[%clk 0:00:03]}  Kxh7 {[%clk 0:00:04]} 66. Nf6+ {[%clk 0:00:04]}  Kg6 {[%clk 0:00:03]} 67. Nxe4 {[%clk 0:00:05]}  Kf5 {[%clk 0:00:04]} 68. Nd6+ {[%clk 0:00:05]}  Ke6 {[%clk 0:00:04]} 69. Nc4 {[%clk 0:00:05]}  fxg3 {[%clk 0:00:05]} 70. Kxg3 {[%clk 0:00:05]}  Nf4 {[%clk 0:00:06]} 71. Kf3 {[%clk 0:00:06]}  Nd5 {[%clk 0:00:07]} 72. Ke4 {[%clk 0:00:05]}  Nf6+ {[%clk 0:00:08]} 73. Ke3 {[%clk 0:00:06]}  Kd5 {[%clk 0:00:08]} 74. Nb6+ {[%clk 0:00:06]}  Kc5 {[%clk 0:00:08]} 75. Na4+ {[%clk 0:00:06]}  Kb5 {[%clk 0:00:08]} 76. Nc3+ {[%clk 0:00:06]}  Kc6 {[%clk 0:00:09]} 77. Na4 {[%clk 0:00:05]}  Nd5+ {[%clk 0:00:10]} 78. Ke4 {[%clk 0:00:05]}  Kd6 {[%clk 0:00:09]} 79. Nb2 {[%clk 0:00:05]}  Nc3+ {[%clk 0:00:09]} 80. Kd3 {[%clk 0:00:05]}  Nb5 {[%clk 0:00:10]} 81. Ke4 {[%clk 0:00:05]}  Ke6 {[%clk 0:00:09]} 82. Nc4 {[%clk 0:00:05]}  Nd6+ {[%clk 0:00:10]} 83. Nxd6 {[%clk 0:00:05]}  Kxd6 {[%clk 0:00:11]} 84. Kf5 {[%clk 0:00:06]}  Kd5 {[%clk 0:00:11]} 85. Kf6 {[%clk 0:00:07]}  e4 {[%clk 0:00:12]} 86. Kg7 {[%clk 0:00:08]}  e3 {[%clk 0:00:12]} 87. Kh8 {[%clk 0:00:09]}  e2 {[%clk 0:00:13]} 88. Kg8 {[%clk 0:00:10]}  e1=Q {[%clk 0:00:13]} 89. Kg7 {[%clk 0:00:10]}  Qf1 {[%clk 0:00:13]} 90. Kh7 {[%clk 0:00:11]}  Ke6 {[%clk 0:00:14]} 91. Kg8 {[%clk 0:00:12]}  Ke7 {[%clk 0:00:13]} 92. Kh8 {[%clk 0:00:13]}  Kf7 {[%clk 0:00:14]} 93. Kh7 {[%clk 0:00:14]}  Qh1# {[%clk 0:00:14]} 0-1


[Site "https://www.chess.com"]

[Event "Titled Tuesday Blitz February 21 Early 2023"]
[White "Bilan, Danila"]
[Black "Jimenez, Joaquin"]
[WhiteFideId "24161918"]
[BlackFideId "109860"]
[WhiteElo "2303"]
[BlackElo "2195"]
[Result "1/2-1/2"]
[Round "08"]
[TimeControl "180+2"]
[Date "2023.02.21"]
[WhiteClock "0:00:09"]
[BlackClock "0:00:06"]

1. d4 {[%clk 0:03:00]}  Nf6 {[%clk 0:02:59]} 2. Nf3 {[%clk 0:03:01]}  g6 {[%clk 0:02:59]} 3. Bg5 {[%clk 0:03:01]}  Bg7 {[%clk 0:02:59]} 4. c3 {[%clk 0:03:01]}  O-O {[%clk 0:02:58]} 5. Nbd2 {[%clk 0:03:02]}  c5 {[%clk 0:02:59]} 6. e3 {[%clk 0:03:02]}  d5 {[%clk 0:02:56]} 7. Bd3 {[%clk 0:03:01]}  Nc6 {[%clk 0:02:56]} 8. O-O {[%clk 0:03:01]}  Qb6 {[%clk 0:02:54]} 9. Rb1 {[%clk 0:02:56]}  c4 {[%clk 0:02:53]} 10. Bc2 {[%clk 0:02:56]}  Qa5 {[%clk 0:02:49]} 11. a3 {[%clk 0:02:53]}  Bf5 {[%clk 0:02:27]} 12. Re1 {[%clk 0:02:52]}  Rae8 {[%clk 0:02:17]} 13. e4 {[%clk 0:02:38]}  dxe4 {[%clk 0:02:15]} 14. Nxe4 {[%clk 0:02:36]}  Nxe4 {[%clk 0:02:14]} 15. Bxe4 {[%clk 0:02:36]}  Bxe4 {[%clk 0:02:13]} 16. Rxe4 {[%clk 0:02:37]}  Qd5 {[%clk 0:02:14]} 17. Qe2 {[%clk 0:02:27]}  e6 {[%clk 0:02:12]} 18. Re1 {[%clk 0:02:21]}  b5 {[%clk 0:02:07]} 19. Qe3 {[%clk 0:02:11]}  a5 {[%clk 0:02:05]} 20. Bh6 {[%clk 0:02:07]}  b4 {[%clk 0:02:03]} 21. axb4 {[%clk 0:02:03]}  axb4 {[%clk 0:02:03]} 22. Rh4 {[%clk 0:01:19]}  Bf6 {[%clk 0:01:46]} 23. Rh3 {[%clk 0:01:19]}  Ra8 {[%clk 0:01:19]} 24. Bxf8 {[%clk 0:01:14]}  Kxf8 {[%clk 0:01:20]} 25. Rxh7 {[%clk 0:01:09]}  Ra2 {[%clk 0:01:07]} 26. Ne5 {[%clk 0:00:50]}  Nxe5 {[%clk 0:00:58]} 27. dxe5 {[%clk 0:00:49]}  Bg7 {[%clk 0:00:59]} 28. Qb6 {[%clk 0:00:20]}  Kg8 {[%clk 0:00:57]} 29. Rh3 {[%clk 0:00:15]}  b3 {[%clk 0:00:48]} 30. Qb8+ {[%clk 0:00:14]}  Bf8 {[%clk 0:00:48]} 31. Rf3 {[%clk 0:00:04]}  Qc5 {[%clk 0:00:29]} 32. Qb7 {[%clk 0:00:03]}  Be7 {[%clk 0:00:27]} 33. Qb8+ {[%clk 0:00:04]}  Kg7 {[%clk 0:00:25]} 34. Rh3 {[%clk 0:00:03]}  Bf8 {[%clk 0:00:24]} 35. Rf3 {[%clk 0:00:01]}  Rxb2 {[%clk 0:00:20]} 36. h4 {[%clk 0:00:02]}  Rd2 {[%clk 0:00:18]} 37. h5 {[%clk 0:00:02]}  Rd3 {[%clk 0:00:17]} 38. hxg6 {[%clk 0:00:01]}  Rxf3 {[%clk 0:00:16]} 39. gxf3 {[%clk 0:00:02]}  Kxg6 {[%clk 0:00:15]} 40. Qb7 {[%clk 0:00:02]}  Be7 {[%clk 0:00:13]} 41. Qe4+ {[%clk 0:00:03]}  Kg7 {[%clk 0:00:13]} 42. Qg4+ {[%clk 0:00:04]}  Kf8 {[%clk 0:00:14]} 43. Ra1 {[%clk 0:00:03]}  Bd8 {[%clk 0:00:09]} 44. Qe4 {[%clk 0:00:03]}  Qd5 {[%clk 0:00:09]} 45. Rb1 {[%clk 0:00:01]}  Qxe4 {[%clk 0:00:08]} 46. fxe4 {[%clk 0:00:01]}  Ba5 {[%clk 0:00:09]} 47. Kf1 {[%clk 0:00:02]}  Bxc3 {[%clk 0:00:09]} 48. Rc1 {[%clk 0:00:03]}  b2 {[%clk 0:00:09]} 49. Rb1 {[%clk 0:00:03]}  Bxe5 {[%clk 0:00:09]} 50. Ke2 {[%clk 0:00:04]}  c3 {[%clk 0:00:10]} 51. Kd3 {[%clk 0:00:04]}  f5 {[%clk 0:00:11]} 52. exf5 {[%clk 0:00:03]}  exf5 {[%clk 0:00:12]} 53. f4 {[%clk 0:00:04]}  Bf6 {[%clk 0:00:11]} 54. Kc2 {[%clk 0:00:04]}  Kf7 {[%clk 0:00:11]} 55. Re1 {[%clk 0:00:05]}  Bg7 {[%clk 0:00:10]} 56. Re2 {[%clk 0:00:02]}  Bf6 {[%clk 0:00:11]} 57. Re3 {[%clk 0:00:02]}  Kg6 {[%clk 0:00:11]} 58. Rd3 {[%clk 0:00:03]}  Kh5 {[%clk 0:00:11]} 59. Rd6 {[%clk 0:00:03]}  Bg7 {[%clk 0:00:10]} 60. Rd7 {[%clk 0:00:04]}  Bf6 {[%clk 0:00:10]} 61. Rd6 {[%clk 0:00:05]}  Bg7 {[%clk 0:00:11]} 62. Rd7 {[%clk 0:00:05]}  Bf6 {[%clk 0:00:08]} 63. Rf7 {[%clk 0:00:05]}  Kg6 {[%clk 0:00:07]} 64. Rc7 {[%clk 0:00:05]}  Bg7 {[%clk 0:00:06]} 65. Rc6+ {[%clk 0:00:05]}  Bf6 {[%clk 0:00:06]} 66. Rc5 {[%clk 0:00:05]}  Bg7 {[%clk 0:00:06]} 67. Rd5 {[%clk 0:00:05]}  Bf6 {[%clk 0:00:05]} 68. Rb5 {[%clk 0:00:06]}  Bg7 {[%clk 0:00:05]} 69. Kd3 {[%clk 0:00:06]}  Bf6 {[%clk 0:00:06]} 70. Kc2 {[%clk 0:00:06]}  Bg7 {[%clk 0:00:05]} 71. Rb6+ {[%clk 0:00:06]}  Bf6 {[%clk 0:00:05]} 72. Rc6 {[%clk 0:00:07]}  Kg7 {[%clk 0:00:05]} 73. Re6 {[%clk 0:00:06]}  Kf7 {[%clk 0:00:05]} 74. Ra6 {[%clk 0:00:07]}  Kg7 {[%clk 0:00:06]} 75. Ra7+ {[%clk 0:00:07]}  Kg6 {[%clk 0:00:06]} 76. Ra6 {[%clk 0:00:08]}  Kg7 {[%clk 0:00:06]} 77. Ra5 {[%clk 0:00:08]}  Kg6 {[%clk 0:00:06]} 78. Rb5 {[%clk 0:00:09]} 1/2-1/2


[Site "https://www.chess.com"]

[Event "Titled Tuesday Blitz February 21 Early 2023"]
[White "Shapiro, Viktor"]
[Black "Afanasieva, Alexandra"]
[WhiteFideId "4175700"]
[BlackFideId "34126926"]
[WhiteElo "2192"]
[BlackElo "1857"]
[Result "1-0"]
[Round "08"]
[TimeControl "180+2"]
[Date "2023.02.21"]
[WhiteClock "0:02:03"]
[BlackClock "0:01:10"]

1. c4 {[%clk 0:03:00]}  e5 {[%clk 0:02:58]} 2. Nc3 {[%clk 0:03:01]}  Nf6 {[%clk 0:02:56]} 3. g3 {[%clk 0:03:01]}  d5 {[%clk 0:02:57]} 4. cxd5 {[%clk 0:03:01]}  Nxd5 {[%clk 0:02:58]} 5. Bg2 {[%clk 0:03:02]}  Nb6 {[%clk 0:02:59]} 6. Nf3 {[%clk 0:03:02]}  Nc6 {[%clk 0:02:59]} 7. d3 {[%clk 0:03:03]}  Be7 {[%clk 0:02:59]} 8. a3 {[%clk 0:03:03]}  Be6 {[%clk 0:02:59]} 9. O-O {[%clk 0:02:59]}  O-O {[%clk 0:02:59]} 10. b4 {[%clk 0:02:59]}  a5 {[%clk 0:02:59]} 11. b5 {[%clk 0:02:54]}  Nd4 {[%clk 0:02:51]} 12. Rb1 {[%clk 0:02:53]}  a4 {[%clk 0:02:50]} 13. Nxe5 {[%clk 0:02:38]}  Bf6 {[%clk 0:02:25]} 14. f4 {[%clk 0:02:17]}  Nf5 {[%clk 0:01:35]} 15. Ne4 {[%clk 0:02:06]}  Bxe5 {[%clk 0:01:33]} 16. fxe5 {[%clk 0:02:06]}  Qd4+ {[%clk 0:01:34]} 17. Kh1 {[%clk 0:02:06]}  Bb3 {[%clk 0:01:13]} 18. Qd2 {[%clk 0:02:03]}  Qxe5 {[%clk 0:01:10]} 19. Bb2 {[%clk 0:02:03]} 1-0


[Site "https://www.chess.com"]

[Event "Titled Tuesday Blitz February 21 Early 2023"]
[White "Tan, Jun Ying"]
[Black "Mazurkiewicz, Michal"]
[WhiteFideId "5710413"]
[BlackFideId "1124943"]
[WhiteElo "2307"]
[BlackElo "2145"]
[Result "1/2-1/2"]
[Round "08"]
[TimeControl "180+2"]
[Date "2023.02.21"]
[WhiteClock "0:00:24"]
[BlackClock "0:00:10"]

1. Nf3 {[%clk 0:03:00]}  Nf6 {[%clk 0:02:59]} 2. b3 {[%clk 0:02:59]}  g6 {[%clk 0:02:59]} 3. Bb2 {[%clk 0:02:59]}  Bg7 {[%clk 0:03:00]} 4. g3 {[%clk 0:02:59]}  O-O {[%clk 0:03:00]} 5. Bg2 {[%clk 0:02:59]}  d6 {[%clk 0:03:01]} 6. d4 {[%clk 0:02:59]}  Nbd7 {[%clk 0:03:01]} 7. O-O {[%clk 0:02:59]}  Re8 {[%clk 0:03:01]} 8. c4 {[%clk 0:02:53]}  c6 {[%clk 0:03:02]} 9. Nc3 {[%clk 0:02:52]}  e5 {[%clk 0:03:01]} 10. dxe5 {[%clk 0:02:48]}  dxe5 {[%clk 0:03:02]} 11. Ng5 {[%clk 0:02:26]}  Qe7 {[%clk 0:02:57]} 12. Nge4 {[%clk 0:02:22]}  Nxe4 {[%clk 0:02:56]} 13. Nxe4 {[%clk 0:02:23]}  Rd8 {[%clk 0:02:54]} 14. Qd6 {[%clk 0:02:21]}  Qxd6 {[%clk 0:02:51]} 15. Nxd6 {[%clk 0:02:22]}  Nc5 {[%clk 0:02:48]} 16. Nxc8 {[%clk 0:02:22]}  Raxc8 {[%clk 0:02:49]} 17. Rfd1 {[%clk 0:02:20]}  Ne6 {[%clk 0:02:42]} 18. e3 {[%clk 0:02:19]}  Nc5 {[%clk 0:02:41]} 19. Ba3 {[%clk 0:02:17]}  Ne6 {[%clk 0:02:14]} 20. Be7 {[%clk 0:02:07]}  Re8 {[%clk 0:01:54]} 21. Rd7 {[%clk 0:02:05]}  Rc7 {[%clk 0:01:50]} 22. Rxc7 {[%clk 0:02:05]}  Nxc7 {[%clk 0:01:51]} 23. Bc5 {[%clk 0:02:05]}  e4 {[%clk 0:01:33]} 24. Rd1 {[%clk 0:02:02]}  b6 {[%clk 0:01:15]} 25. Ba3 {[%clk 0:02:02]}  f5 {[%clk 0:01:08]} 26. Kf1 {[%clk 0:01:48]}  Ne6 {[%clk 0:00:54]} 27. Ke2 {[%clk 0:01:35]}  Rd8 {[%clk 0:00:49]} 28. Rxd8+ {[%clk 0:01:29]}  Nxd8 {[%clk 0:00:50]} 29. f3 {[%clk 0:01:30]}  exf3+ {[%clk 0:00:50]} 30. Bxf3 {[%clk 0:01:30]}  Bf8 {[%clk 0:00:49]} 31. Bb2 {[%clk 0:01:26]}  Bg7 {[%clk 0:00:49]} 32. Ba3 {[%clk 0:01:26]}  Bf8 {[%clk 0:00:49]} 33. Bc1 {[%clk 0:01:26]}  c5 {[%clk 0:00:49]} 34. e4 {[%clk 0:01:23]}  fxe4 {[%clk 0:00:44]} 35. Bxe4 {[%clk 0:01:23]}  Ne6 {[%clk 0:00:44]} 36. Bd5 {[%clk 0:01:23]}  Kf7 {[%clk 0:00:44]} 37. Kd3 {[%clk 0:01:19]}  Bg7 {[%clk 0:00:44]} 38. Ke4 {[%clk 0:01:17]}  Ke7 {[%clk 0:00:45]} 39. Bxe6 {[%clk 0:01:08]}  Kxe6 {[%clk 0:00:46]} 40. Bf4 {[%clk 0:01:08]}  Bf8 {[%clk 0:00:15]} 41. Bb8 {[%clk 0:00:56]}  Bd6 {[%clk 0:00:15]} 42. Bxa7 {[%clk 0:00:53]}  Bc7 {[%clk 0:00:16]} 43. a4 {[%clk 0:00:53]}  Kd6 {[%clk 0:00:17]} 44. a5 {[%clk 0:00:40]}  bxa5 {[%clk 0:00:17]} 45. g4 {[%clk 0:00:36]}  Kc6 {[%clk 0:00:18]} 46. h3 {[%clk 0:00:37]}  Bd6 {[%clk 0:00:15]} 47. h4 {[%clk 0:00:30]}  Kb7 {[%clk 0:00:14]} 48. Kd5 {[%clk 0:00:30]}  Be7 {[%clk 0:00:09]} 49. Bxc5 {[%clk 0:00:30]}  Bxh4 {[%clk 0:00:09]} 50. Bd4 {[%clk 0:00:29]}  h5 {[%clk 0:00:09]} 51. gxh5 {[%clk 0:00:27]}  gxh5 {[%clk 0:00:10]} 52. Kc5 {[%clk 0:00:27]}  Bd8 {[%clk 0:00:09]} 53. Kd6 {[%clk 0:00:22]}  h4 {[%clk 0:00:10]} 54. c5 {[%clk 0:00:22]}  h3 {[%clk 0:00:09]} 55. c6+ {[%clk 0:00:21]}  Kc8 {[%clk 0:00:08]} 56. Bg1 {[%clk 0:00:20]}  h2 {[%clk 0:00:07]} 57. Bxh2 {[%clk 0:00:20]}  Bc7+ {[%clk 0:00:08]} 58. Kc5 {[%clk 0:00:20]}  Bxh2 {[%clk 0:00:09]} 59. Kb5 {[%clk 0:00:21]}  Bc7 {[%clk 0:00:09]} 60. b4 {[%clk 0:00:21]}  axb4 {[%clk 0:00:09]} 61. Kxb4 {[%clk 0:00:22]}  Kd8 {[%clk 0:00:09]} 62. Kb5 {[%clk 0:00:23]}  Ke7 {[%clk 0:00:10]} 63. Ka6 {[%clk 0:00:23]}  Kd6 {[%clk 0:00:10]} 64. Kb7 {[%clk 0:00:24]}  Bd8 {[%clk 0:00:10]} 65. Kc8 {[%clk 0:00:24]}  Kxc6 {[%clk 0:00:10]} 1/2-1/2


[Site "https://www.chess.com"]

[Event "Titled Tuesday Blitz February 21 Early 2023"]
[White "Zacurdajev, Dmitry"]
[Black "Sharapov, Evgeny"]
[WhiteFideId "4196309"]
[BlackFideId "14103133"]
[WhiteElo "2273"]
[BlackElo "2375"]
[Result "0-1"]
[Round "08"]
[TimeControl "180+2"]
[Date "2023.02.21"]
[WhiteClock "0:00:01"]
[BlackClock "0:00:22"]

1. d4 {[%clk 0:02:59]}  Nf6 {[%clk 0:02:59]} 2. c4 {[%clk 0:02:59]}  e6 {[%clk 0:02:59]} 3. Nc3 {[%clk 0:02:59]}  Bb4 {[%clk 0:02:58]} 4. Qc2 {[%clk 0:02:59]}  c5 {[%clk 0:02:56]} 5. dxc5 {[%clk 0:03:00]}  O-O {[%clk 0:02:56]} 6. Bg5 {[%clk 0:02:58]}  h6 {[%clk 0:02:54]} 7. Bh4 {[%clk 0:02:57]}  Bxc5 {[%clk 0:02:53]} 8. e3 {[%clk 0:02:54]}  Nc6 {[%clk 0:02:53]} 9. Nf3 {[%clk 0:02:51]}  b6 {[%clk 0:02:53]} 10. a3 {[%clk 0:02:51]}  Bb7 {[%clk 0:02:52]} 11. Be2 {[%clk 0:02:47]}  Rc8 {[%clk 0:02:44]} 12. O-O {[%clk 0:02:42]}  Be7 {[%clk 0:02:44]} 13. Rfd1 {[%clk 0:02:41]}  a6 {[%clk 0:02:43]} 14. Rd2 {[%clk 0:02:36]}  Qc7 {[%clk 0:02:41]} 15. Rad1 {[%clk 0:02:36]}  d6 {[%clk 0:02:39]} 16. Bxf6 {[%clk 0:02:31]}  gxf6 {[%clk 0:02:38]} 17. Ne4 {[%clk 0:02:29]}  Rfd8 {[%clk 0:02:32]} 18. b4 {[%clk 0:02:19]}  Ne5 {[%clk 0:02:28]} 19. Nxe5 {[%clk 0:02:12]}  fxe5 {[%clk 0:02:28]} 20. Ng3 {[%clk 0:01:46]}  d5 {[%clk 0:02:21]} 21. Bh5 {[%clk 0:01:11]}  Bf8 {[%clk 0:02:06]} 22. Qb2 {[%clk 0:00:34]}  Bg7 {[%clk 0:01:58]} 23. cxd5 {[%clk 0:00:31]}  Rxd5 {[%clk 0:01:58]} 24. e4 {[%clk 0:00:26]}  Rd4 {[%clk 0:01:51]} 25. h3 {[%clk 0:00:22]}  Qc3 {[%clk 0:01:40]} 26. Qxc3 {[%clk 0:00:14]}  Rxc3 {[%clk 0:01:39]} 27. Ne2 {[%clk 0:00:15]}  Rxd2 {[%clk 0:01:35]} 28. Nxc3 {[%clk 0:00:09]}  Rxd1+ {[%clk 0:01:34]} 29. Bxd1 {[%clk 0:00:10]}  b5 {[%clk 0:01:30]} 30. f3 {[%clk 0:00:06]}  Kf8 {[%clk 0:01:29]} 31. Kf2 {[%clk 0:00:06]}  Ke7 {[%clk 0:01:29]} 32. Ke3 {[%clk 0:00:07]}  Kd6 {[%clk 0:01:25]} 33. Kd3 {[%clk 0:00:07]}  Bf6 {[%clk 0:01:23]} 34. Nb1 {[%clk 0:00:07]}  Bd8 {[%clk 0:01:21]} 35. Nd2 {[%clk 0:00:07]}  Bb6 {[%clk 0:01:21]} 36. Nb3 {[%clk 0:00:07]}  f5 {[%clk 0:01:20]} 37. Be2 {[%clk 0:00:06]}  h5 {[%clk 0:01:16]} 38. Bd1 {[%clk 0:00:06]}  h4 {[%clk 0:01:16]} 39. Be2 {[%clk 0:00:07]}  Bc6 {[%clk 0:01:13]} 40. Bd1 {[%clk 0:00:07]}  Be8 {[%clk 0:01:12]} 41. Be2 {[%clk 0:00:07]}  Bh5 {[%clk 0:01:12]} 42. Nd2 {[%clk 0:00:04]}  Be8 {[%clk 0:01:05]} 43. Nb3 {[%clk 0:00:04]}  Ke7 {[%clk 0:01:05]} 44. Nd2 {[%clk 0:00:04]}  Kf6 {[%clk 0:01:05]} 45. Nb3 {[%clk 0:00:05]}  Kg5 {[%clk 0:01:05]} 46. Bd1 {[%clk 0:00:03]}  Kf4 {[%clk 0:01:04]} 47. exf5 {[%clk 0:00:03]}  exf5 {[%clk 0:01:04]} 48. Ke2 {[%clk 0:00:03]}  Kg3 {[%clk 0:00:59]} 49. Kf1 {[%clk 0:00:04]}  Bf7 {[%clk 0:00:56]} 50. Nc5 {[%clk 0:00:04]}  Bc4+ {[%clk 0:00:55]} 51. Kg1 {[%clk 0:00:04]}  a5 {[%clk 0:00:54]} 52. Bc2 {[%clk 0:00:03]}  Kf4 {[%clk 0:00:30]} 53. Bb1 {[%clk 0:00:01]}  e4 {[%clk 0:00:29]} 54. fxe4 {[%clk 0:00:01]}  fxe4 {[%clk 0:00:29]} 55. Bc2 {[%clk 0:00:01]}  e3 {[%clk 0:00:25]} 56. Nd3+ {[%clk 0:00:01]}  Kg3 {[%clk 0:00:22]} 0-1


[Site "https://www.chess.com"]